{"text_format":"1","workbook":"xlsx","n_sheets":2,"sheets":["OrderForm","SizePack"],"not_rendered":{"charts":0,"images":0,"macros":1,"external_links":0,"defined_names":25,"comments":0,"pivot_tables":0},"unopened":[],"bounds":{"document_bytes":16777216,"sheet_cells":100000,"rows_first":2000,"rows_last":500,"rows_between":2000,"halvings":0,"cell_chars":16384,"cell_head_chars":4096},"cells_cut":0,"cells_raw":0,"read":"whole","date_system":"1900"}

{"sheet":"OrderForm","index":0,"n_rows":291,"n_cols":28,"rows_kept":291,"cut":false,"hidden":false,"merged":[[0,10,0,25],[13,4,13,5],[6,4,6,5],[12,4,12,5],[0,0,0,5],[11,1,11,2],[1,1,1,2],[10,1,10,2],[1,4,1,5],[2,1,2,2],[4,4,4,5],[2,4,2,5],[2,0,4,0],[3,4,3,5],[3,1,3,2],[4,1,4,2],[22,11,22,25],[17,4,17,5],[18,4,18,5],[19,4,19,5],[20,4,20,5],[9,1,9,2],[11,4,11,5],[8,0,10,0],[8,1,8,2],[10,4,10,5],[9,4,9,5],[5,0,7,0],[5,1,5,2],[7,4,7,5],[6,1,6,2],[8,4,8,5],[7,1,7,2],[5,4,5,5],[16,4,16,5],[14,1,14,2],[16,1,16,2],[12,1,12,2],[15,4,15,5],[15,1,15,2],[13,1,13,2],[14,4,14,5]]}
["RELLA - Bula Canada Inc. - CAD ORDER FORM",null,null,null,null,null,null,null,null,null,"Size Legend"]
["Order Date","",null,"Customer No","",null,null,null,null,null,"01","O/S"]
["Billing Address","",null,"Customer Name",null,null,null,null,null,null,"05","O/S","S/M","M/L","L/XL"]
[null,"",null,"Customer PO#",""]
[null,"",null,"Sales Rep",""]
["Shipping Address","",null,"Federal ID#",""]
[null,"",null,"Ship Via","UPS GROUND"]
[null,"",null,"Store#",""]
["Special Instructions","",null,"Terms: NET 60 Days",""]
[null,"",null,"Dept.",""]
[null,"",null,"Ship Date","2020-09-10"]
["Website","",null,"Cancel Date","2020-12-31"]
["Buyer Name","",null,"Dating Date",""]
["Buyer E-Mail","",null,"Order Category"]
["Phone","",null,"Season Code"]
["Fax","",null,"Division"]
["Discount %:",0,null,"Country"]
[null,null,null,"Season","WINTER 2020"]
[null,null,null,"Delivery","Not Applicable"]
[null,null,null,"Theme","MULTI"]
["",null,null,"Price","Wholesale L1"]
[null,null,null,null,null,null,null,null,null,null,null,null,null,null,null,null,null,null,null,null,null,null,null,null,null,null,"Total Qty","Extension"]
["Theme","Style","Description","Color","Color Desc.","Price","Disc %","Net Price","Size Pack","Pack Qty","Size","Total >>>",null,null,null,null,null,null,null,null,null,null,null,null,null,null,{"$f":"SUM(AA24:AA291)","v":0},{"$f":"SUM(AB24:AB291)","v":0}]
["RELLA UNISEX ESSENTIALLY","STASH10","STASH BEANIE","BLACK","BLACK",30,{"$f":"B17","v":0},{"$f":"F24 - (F24 * (G24/100))","v":30},"",null,"01",null,null,null,null,null,null,null,null,null,null,null,null,null,null,null,{"$f":"SUM(L24:Z24)","v":0},{"$f":"AA24 * H24","v":0}]
["RELLA UNISEX ESSENTIALLY","STASH10","STASH BEANIE","HEGREY","HEATHER GREY",30,{"$f":"B17","v":0},30,"",null,"01",null,null,null,null,null,null,null,null,null,null,null,null,null,null,null,0,0]
["RELLA UNISEX ESSENTIALLY","STASH10","STASH BEANIE","HENAVY","HEATHER NAVY",30,{"$f":"B17","v":0},30,"",null,"01",null,null,null,null,null,null,null,null,null,null,null,null,null,null,null,0,0]
["RELLA UNISEX ESSENTIALLY","STASH10","STASH BEANIE","MINK","MINK",30,{"$f":"B17","v":0},30,"",null,"01",null,null,null,null,null,null,null,null,null,null,null,null,null,null,null,0,0]
["RELLA UNISEX ESSENTIALLY","STASH19","STASH CUFFED / SLOUCH BEANIE","BLACK","BLACK",32.5,{"$f":"B17","v":0},32.5,"",null,"01",null,null,null,null,null,null,null,null,null,null,null,null,null,null,null,0,0]
["RELLA UNISEX ESSENTIALLY","STASH19","STASH CUFFED / SLOUCH BEANIE","HEGREY","HEATHER GREY",32.5,{"$f":"B17","v":0},32.5,"",null,"01",null,null,null,null,null,null,null,null,null,null,null,null,null,null,null,0,0]
["RELLA UNISEX ESSENTIALLY","STASH19","STASH CUFFED / SLOUCH BEANIE","HENAVY","HEATHER NAVY",32.5,{"$f":"B17","v":0},32.5,"",null,"01",null,null,null,null,null,null,null,null,null,null,null,null,null,null,null,0,0]
["RELLA UNISEX ESSENTIALLY","STASH19","STASH CUFFED / SLOUCH BEANIE","MINK","MINK",32.5,{"$f":"B17","v":0},32.5,"",null,"01",null,null,null,null,null,null,null,null,null,null,null,null,null,null,null,0,0]
["RELLA UNISEX ESSENTIALLY","STASH19","STASH CUFFED / SLOUCH BEANIE","SEPROS","SEPIA ROSE",32.5,{"$f":"B17","v":0},32.5,"",null,"01",null,null,null,null,null,null,null,null,null,null,null,null,null,null,null,0,0]
["RELLA UNISEX ESSENTIALLY","HADDOC15","HADDOCK CUFFED BEANIE","BLACK","BLACK",35,{"$f":"B17","v":0},35,"",null,"01",null,null,null,null,null,null,null,null,null,null,null,null,null,null,null,0,0]
["RELLA UNISEX ESSENTIALLY","HADDOC15","HADDOCK CUFFED BEANIE","DARKOL","DARK OLVE",35,{"$f":"B17","v":0},35,"",null,"01",null,null,null,null,null,null,null,null,null,null,null,null,null,null,null,0,0]
["RELLA UNISEX ESSENTIALLY","HADDOC15","HADDOCK CUFFED BEANIE","LIGHTG","LIGHT HEATHER GREY",35,{"$f":"B17","v":0},35,"",null,"01",null,null,null,null,null,null,null,null,null,null,null,null,null,null,null,0,0]
["RELLA UNISEX ESSENTIALLY","HADDOC15","HADDOCK CUFFED BEANIE","PINOT","WINE",35,{"$f":"B17","v":0},35,"",null,"01",null,null,null,null,null,null,null,null,null,null,null,null,null,null,null,0,0]
["RELLA UNISEX ESSENTIALLY","COMPA15","COMPA CUFFED BEANIE","BLACK","BLACK",32.5,{"$f":"B17","v":0},32.5,"",null,"01",null,null,null,null,null,null,null,null,null,null,null,null,null,null,null,0,0]
["RELLA UNISEX ESSENTIALLY","COMPA15","COMPA CUFFED BEANIE","DKCLAY","DARK CLAY",32.5,{"$f":"B17","v":0},32.5,"",null,"01",null,null,null,null,null,null,null,null,null,null,null,null,null,null,null,0,0]
["RELLA UNISEX ESSENTIALLY","COMPA15","COMPA CUFFED BEANIE","DKHGRY","DARK HEATHER GREY",32.5,{"$f":"B17","v":0},32.5,"",null,"01",null,null,null,null,null,null,null,null,null,null,null,null,null,null,null,0,0]
["RELLA UNISEX ESSENTIALLY","COMPA15","COMPA CUFFED BEANIE","DPWATR","DEEP WATER",32.5,{"$f":"B17","v":0},32.5,"",null,"01",null,null,null,null,null,null,null,null,null,null,null,null,null,null,null,0,0]
["RELLA UNISEX QUOTIDIAN","CRAFTO15","CRAFTO CUFFED BEANIE","BLACK","BLACK",25,{"$f":"B17","v":0},25,"",null,"01",null,null,null,null,null,null,null,null,null,null,null,null,null,null,null,0,0]
["RELLA UNISEX QUOTIDIAN","CRAFTO15","CRAFTO CUFFED BEANIE","DPWATR","DEEP WATER",25,{"$f":"B17","v":0},25,"",null,"01",null,null,null,null,null,null,null,null,null,null,null,null,null,null,null,0,0]
["RELLA UNISEX QUOTIDIAN","CRAFTO15","CRAFTO CUFFED BEANIE","GREY","GREY",25,{"$f":"B17","v":0},25,"",null,"01",null,null,null,null,null,null,null,null,null,null,null,null,null,null,null,0,0]
["RELLA UNISEX QUOTIDIAN","MARLIE15","MARLIE CUFFED BEANIE","BLKMIX","BLACK MIX",25,{"$f":"B17","v":0},25,"",null,"01",null,null,null,null,null,null,null,null,null,null,null,null,null,null,null,0,0]
["RELLA UNISEX QUOTIDIAN","MARLIE15","MARLIE CUFFED BEANIE","DPWAMX","DEEP WATER MIX",25,{"$f":"B17","v":0},25,"",null,"01",null,null,null,null,null,null,null,null,null,null,null,null,null,null,null,0,0]
["RELLA UNISEX QUOTIDIAN","MARLIE15","MARLIE CUFFED BEANIE","GREYMI","GREYMIX",25,{"$f":"B17","v":0},25,"",null,"01",null,null,null,null,null,null,null,null,null,null,null,null,null,null,null,0,0]
["RELLA UNISEX QUOTIDIAN","MARLIE15","MARLIE CUFFED BEANIE","NAVMIX","NAVY MIX",25,{"$f":"B17","v":0},25,"",null,"01",null,null,null,null,null,null,null,null,null,null,null,null,null,null,null,0,0]
["RELLA UNISEX QUOTIDIAN","MARLIE16","Cuff  Yarn Pom Beanie","BLKMIX","BLACK MIX",27.5,{"$f":"B17","v":0},27.5,"",null,"01",null,null,null,null,null,null,null,null,null,null,null,null,null,null,null,0,0]
["RELLA UNISEX QUOTIDIAN","MARLIE16","Cuff  Yarn Pom Beanie","DPWAMX","DEEP WATER MIX",27.5,{"$f":"B17","v":0},27.5,"",null,"01",null,null,null,null,null,null,null,null,null,null,null,null,null,null,null,0,0]
["RELLA UNISEX QUOTIDIAN","MARLIE16","Cuff  Yarn Pom Beanie","GREYMI","GREYMIX",27.5,{"$f":"B17","v":0},27.5,"",null,"01",null,null,null,null,null,null,null,null,null,null,null,null,null,null,null,0,0]
["RELLA UNISEX QUOTIDIAN","MARLIE16","Cuff  Yarn Pom Beanie","NAVMIX","NAVY MIX",27.5,{"$f":"B17","v":0},27.5,"",null,"01",null,null,null,null,null,null,null,null,null,null,null,null,null,null,null,0,0]
["RELLA UNISEX QUOTIDIAN","KENNY10","KENNY BEANIE","BLKMIX","BLACK MIX",20,{"$f":"B17","v":0},20,"",null,"01",null,null,null,null,null,null,null,null,null,null,null,null,null,null,null,0,0]
["RELLA UNISEX QUOTIDIAN","KENNY10","KENNY BEANIE","DPWAMX","DEEP WATER MIX",20,{"$f":"B17","v":0},20,"",null,"01",null,null,null,null,null,null,null,null,null,null,null,null,null,null,null,0,0]
["RELLA UNISEX QUOTIDIAN","KENNY10","KENNY BEANIE","GREYMI","GREYMIX",20,{"$f":"B17","v":0},20,"",null,"01",null,null,null,null,null,null,null,null,null,null,null,null,null,null,null,0,0]
["RELLA UNISEX QUOTIDIAN","KENNY10","KENNY BEANIE","NAVMIX","NAVY MIX",20,{"$f":"B17","v":0},20,"",null,"01",null,null,null,null,null,null,null,null,null,null,null,null,null,null,null,0,0]
["RELLA UNISEX QUOTIDIAN","KENNY11","KENNY YARN POM BEANIE","BLKMIX","BLACK MIX",25,{"$f":"B17","v":0},25,"",null,"01",null,null,null,null,null,null,null,null,null,null,null,null,null,null,null,0,0]
["RELLA UNISEX QUOTIDIAN","KENNY11","KENNY YARN POM BEANIE","DPWAMX","DEEP WATER MIX",25,{"$f":"B17","v":0},25,"",null,"01",null,null,null,null,null,null,null,null,null,null,null,null,null,null,null,0,0]
["RELLA UNISEX QUOTIDIAN","KENNY11","KENNY YARN POM BEANIE","GREYMI","GREYMIX",25,{"$f":"B17","v":0},25,"",null,"01",null,null,null,null,null,null,null,null,null,null,null,null,null,null,null,0,0]
["RELLA UNISEX QUOTIDIAN","KENNY11","KENNY YARN POM BEANIE","NAVMIX","NAVY MIX",25,{"$f":"B17","v":0},25,"",null,"01",null,null,null,null,null,null,null,null,null,null,null,null,null,null,null,0,0]
["RELLA UNISEX QUOTIDIAN","WILSON19","WILSON CUFF/ SLOUCH BEANIE","BLKMIX","BLACK MIX",35,{"$f":"B17","v":0},35,"",null,"01",null,null,null,null,null,null,null,null,null,null,null,null,null,null,null,0,0]
["RELLA UNISEX QUOTIDIAN","WILSON19","WILSON CUFF/ SLOUCH BEANIE","NAVMIX","NAVY MIX",35,{"$f":"B17","v":0},35,"",null,"01",null,null,null,null,null,null,null,null,null,null,null,null,null,null,null,0,0]
["RELLA UNISEX QUOTIDIAN","WILSON19","WILSON CUFF/ SLOUCH BEANIE","PINOMX","PINOT MIX",35,{"$f":"B17","v":0},35,"",null,"01",null,null,null,null,null,null,null,null,null,null,null,null,null,null,null,0,0]
["RELLA UNISEX QUOTIDIAN","WILSON23","WILSON SCARF","BLKMIX","BLACK MIX",87.5,{"$f":"B17","v":0},87.5,"",null,"01",null,null,null,null,null,null,null,null,null,null,null,null,null,null,null,0,0]
["RELLA UNISEX QUOTIDIAN","WILSON23","WILSON SCARF","NAVMIX","NAVY MIX",87.5,{"$f":"B17","v":0},87.5,"",null,"01",null,null,null,null,null,null,null,null,null,null,null,null,null,null,null,0,0]
["RELLA UNISEX QUOTIDIAN","WILSON23","WILSON SCARF","PINOMX","PINOT MIX",87.5,{"$f":"B17","v":0},87.5,"",null,"01",null,null,null,null,null,null,null,null,null,null,null,null,null,null,null,0,0]
["RELLA UNISEX QUOTIDIAN","STATIO15","STATION CUFFED BEANIE","BLKMIX","BLACK MIX",25,{"$f":"B17","v":0},25,"",null,"01",null,null,null,null,null,null,null,null,null,null,null,null,null,null,null,0,0]
["RELLA UNISEX QUOTIDIAN","STATIO15","STATION CUFFED BEANIE","NAVMIX","NAVY MIX",25,{"$f":"B17","v":0},25,"",null,"01",null,null,null,null,null,null,null,null,null,null,null,null,null,null,null,0,0]
["RELLA UNISEX QUOTIDIAN","STATIO23","STATION SCARF","BLKMIX","BLACK MIX",40,{"$f":"B17","v":0},40,"",null,"01",null,null,null,null,null,null,null,null,null,null,null,null,null,null,null,0,0]
["RELLA UNISEX QUOTIDIAN","STATIO23","STATION SCARF","NAVMIX","NAVY MIX",40,{"$f":"B17","v":0},40,"",null,"01",null,null,null,null,null,null,null,null,null,null,null,null,null,null,null,0,0]
["RELLA WM THE BOTTOM LINE","ARLO15","ARLO CUFFED BEANIE","BLACK","BLACK",20,{"$f":"B17","v":0},20,"",null,"01",null,null,null,null,null,null,null,null,null,null,null,null,null,null,null,0,0]
["RELLA WM THE BOTTOM LINE","ARLO15","ARLO CUFFED BEANIE","DKCLAY","DARK CLAY",20,{"$f":"B17","v":0},20,"",null,"01",null,null,null,null,null,null,null,null,null,null,null,null,null,null,null,0,0]
["RELLA WM THE BOTTOM LINE","ARLO15","ARLO CUFFED BEANIE","HEGREY","HEATHER GREY",20,{"$f":"B17","v":0},20,"",null,"01",null,null,null,null,null,null,null,null,null,null,null,null,null,null,null,0,0]
["RELLA WM THE BOTTOM LINE","ARLO15","ARLO CUFFED BEANIE","PINOT","WINE",20,{"$f":"B17","v":0},20,"",null,"01",null,null,null,null,null,null,null,null,null,null,null,null,null,null,null,0,0]
["RELLA UNISEX QUOTIDIAN","SHIRE15","SHIRE BAND CUFFED BEANIE","BLKMIX","BLACK MIX",30,{"$f":"B17","v":0},30,"",null,"01",null,null,null,null,null,null,null,null,null,null,null,null,null,null,null,0,0]
["RELLA UNISEX QUOTIDIAN","SHIRE15","SHIRE BAND CUFFED BEANIE","DKHGMX","DARK HEATHER GREY MIX",30,{"$f":"B17","v":0},30,"",null,"01",null,null,null,null,null,null,null,null,null,null,null,null,null,null,null,0,0]
["RELLA UNISEX QUOTIDIAN","SHIRE15","SHIRE BAND CUFFED BEANIE","NAVMIX","NAVY MIX",30,{"$f":"B17","v":0},30,"",null,"01",null,null,null,null,null,null,null,null,null,null,null,null,null,null,null,0,0]
["RELLA UNISEX QUOTIDIAN","SCOTTS15","SCOTTS CUFFED BEANIE","HEBKMX","HEATHER BLACK MIX",22.5,{"$f":"B17","v":0},22.5,"",null,"01",null,null,null,null,null,null,null,null,null,null,null,null,null,null,null,0,0]
["RELLA UNISEX QUOTIDIAN","BURB15","BURB CUFF BEANIE","DKHGMX","DARK HEATHER GREY MIX",32.5,{"$f":"B17","v":0},32.5,"",null,"01",null,null,null,null,null,null,null,null,null,null,null,null,null,null,null,0,0]
["RELLA UNISEX QUOTIDIAN","BURB23","BURB SCARF","DKHGMX","DARK HEATHER GREY MIX",65,{"$f":"B17","v":0},65,"",null,"01",null,null,null,null,null,null,null,null,null,null,null,null,null,null,null,0,0]
["RELLA UNISEX ROVING ALONG","BEGOOD10","BE GOOD BEANIE","BLACK","BLACK",17.5,{"$f":"B17","v":0},17.5,"",null,"01",null,null,null,null,null,null,null,null,null,null,null,null,null,null,null,0,0]
["RELLA UNISEX ROVING ALONG","BEGOOD10","BE GOOD BEANIE","DEEPWA","DEEP WATERS",17.5,{"$f":"B17","v":0},17.5,"",null,"01",null,null,null,null,null,null,null,null,null,null,null,null,null,null,null,0,0]
["RELLA UNISEX ROVING ALONG","BEGOOD10","BE GOOD BEANIE","DKHEGR","DARK HEATHER GREY",17.5,{"$f":"B17","v":0},17.5,"",null,"01",null,null,null,null,null,null,null,null,null,null,null,null,null,null,null,0,0]
["RELLA UNISEX ROVING ALONG","BEGOOD10","BE GOOD BEANIE","NAVY","NAVY",17.5,{"$f":"B17","v":0},17.5,"",null,"01",null,null,null,null,null,null,null,null,null,null,null,null,null,null,null,0,0]
["RELLA UNISEX QUOTIDIAN","MAXIM15","MAXIM CUFFED BEANIE","BLACK","BLACK",20,{"$f":"B17","v":0},20,"",null,"01",null,null,null,null,null,null,null,null,null,null,null,null,null,null,null,0,0]
["RELLA UNISEX QUOTIDIAN","MAXIM15","MAXIM CUFFED BEANIE","DEEPWA","DEEP WATERS",20,{"$f":"B17","v":0},20,"",null,"01",null,null,null,null,null,null,null,null,null,null,null,null,null,null,null,0,0]
["RELLA UNISEX QUOTIDIAN","MAXIM15","MAXIM CUFFED BEANIE","DKHEGR","DARK HEATHER GREY",20,{"$f":"B17","v":0},20,"",null,"01",null,null,null,null,null,null,null,null,null,null,null,null,null,null,null,0,0]
["RELLA UNISEX QUOTIDIAN","MAXIM15","MAXIM CUFFED BEANIE","NAVY","NAVY",20,{"$f":"B17","v":0},20,"",null,"01",null,null,null,null,null,null,null,null,null,null,null,null,null,null,null,0,0]
["RELLA UNISEX ROVING ALONG","BLOCK16","BLOCK CUFFED YARN POM BEANIE","BLKMIX","BLACK MIX",20,{"$f":"B17","v":0},{"$f":"F88 - (F88 * (G88/100))","v":20},"",null,"01",null,null,null,null,null,null,null,null,null,null,null,null,null,null,null,{"$f":"SUM(L88:Z88)","v":0},{"$f":"AA88 * H88","v":0}]
["RELLA UNISEX ROVING ALONG","BLOCK16","BLOCK CUFFED YARN POM BEANIE","NAVMIX","NAVY MIX",20,{"$f":"B17","v":0},20,"",null,"01",null,null,null,null,null,null,null,null,null,null,null,null,null,null,null,0,0]
["RELLA MENS WARM HANDS","LOUIE29","MENS TOUCH SCREEN GLOVE","BLACK","BLACK",50,{"$f":"B17","v":0},50,"",null,"05",null,null,null,null,null,null,null,null,null,null,null,null,null,null,null,0,0]
["RELLA MENS WARM HANDS","LOUIE29","MENS TOUCH SCREEN GLOVE","DKHEGR","DARK HEATHER GREY",50,{"$f":"B17","v":0},50,"",null,"05",null,null,null,null,null,null,null,null,null,null,null,null,null,null,null,0,0]
["RELLA WOMENS WARM HANDS","ludo29","MENS TOUCH SCREEN GLOVE","BLACK","BLACK",50,{"$f":"B17","v":0},50,"",null,"05",null,null,null,null,null,null,null,null,null,null,null,null,null,null,null,0,0]
["RELLA WOMENS WARM HANDS","ludo29","MENS TOUCH SCREEN GLOVE","HAZNUT","HAZELNUT",50,{"$f":"B17","v":0},50,"",null,"05",null,null,null,null,null,null,null,null,null,null,null,null,null,null,null,0,0]
["RELLA WOMENS ESSENTIALLY","MADIGA10","MADIGAN SLIGHT OVERSIZE  BEANIE","BLACK","BLACK",30,{"$f":"B17","v":0},30,"",null,"01",null,null,null,null,null,null,null,null,null,null,null,null,null,null,null,0,0]
["RELLA WOMENS ESSENTIALLY","MADIGA10","MADIGAN SLIGHT OVERSIZE  BEANIE","HEGREY","HEATHER GREY",30,{"$f":"B17","v":0},30,"",null,"01",null,null,null,null,null,null,null,null,null,null,null,null,null,null,null,0,0]
["RELLA WOMENS ESSENTIALLY","SOFTY15","SOFTY CUFFED  BEANIE","ANTLER","ANTLER",30,{"$f":"B17","v":0},30,"",null,"01",null,null,null,null,null,null,null,null,null,null,null,null,null,null,null,0,0]
["RELLA WOMENS ESSENTIALLY","SOFTY15","SOFTY CUFFED  BEANIE","BLACK","BLACK",30,{"$f":"B17","v":0},30,"",null,"01",null,null,null,null,null,null,null,null,null,null,null,null,null,null,null,0,0]
["RELLA WOMENS ESSENTIALLY","SOFTY15","SOFTY CUFFED  BEANIE","HEGREY","HEATHER GREY",30,{"$f":"B17","v":0},30,"",null,"01",null,null,null,null,null,null,null,null,null,null,null,null,null,null,null,0,0]
["RELLA WOMENS ESSENTIALLY","SOFTY15","SOFTY CUFFED  BEANIE","SEPROS","SEPIA ROSE",30,{"$f":"B17","v":0},30,"",null,"01",null,null,null,null,null,null,null,null,null,null,null,null,null,null,null,0,0]
["RELLA WOMENS ESSENTIALLY","SOFTY16","SOFTY CUFFED BEANIE YARN POM","ANTLER","ANTLER",32.5,{"$f":"B17","v":0},32.5,"",null,"01",null,null,null,null,null,null,null,null,null,null,null,null,null,null,null,0,0]
["RELLA WOMENS ESSENTIALLY","SOFTY16","SOFTY CUFFED BEANIE YARN POM","BLACK","BLACK",32.5,{"$f":"B17","v":0},32.5,"",null,"01",null,null,null,null,null,null,null,null,null,null,null,null,null,null,null,0,0]
["RELLA WOMENS ESSENTIALLY","SOFTY16","SOFTY CUFFED BEANIE YARN POM","HEGREY","HEATHER GREY",32.5,{"$f":"B17","v":0},32.5,"",null,"01",null,null,null,null,null,null,null,null,null,null,null,null,null,null,null,0,0]
["RELLA WOMENS ESSENTIALLY","SOFTY16","SOFTY CUFFED BEANIE YARN POM","SEPROS","SEPIA ROSE",32.5,{"$f":"B17","v":0},32.5,"",null,"01",null,null,null,null,null,null,null,null,null,null,null,null,null,null,null,0,0]
["RELLA WOMENS ESSENTIALLY","SOFTY18","CUFFED BEANIE FUR POM","ANTLER","Antler",40,{"$f":"B17","v":0},40,"",null,"01",null,null,null,null,null,null,null,null,null,null,null,null,null,null,null,0,0]
["RELLA WOMENS ESSENTIALLY","SOFTY18","CUFFED BEANIE FUR POM","BLACK","BLACK",40,{"$f":"B17","v":0},40,"",null,"01",null,null,null,null,null,null,null,null,null,null,null,null,null,null,null,0,0]
["RELLA WOMENS ESSENTIALLY","SOFTY18","CUFFED BEANIE FUR POM","HEGREY","HEATHER GREY",40,{"$f":"B17","v":0},40,"",null,"01",null,null,null,null,null,null,null,null,null,null,null,null,null,null,null,0,0]
["RELLA WOMENS ESSENTIALLY","SOFTY18","CUFFED BEANIE FUR POM","SEPROS","SEPIA ROSE",40,{"$f":"B17","v":0},40,"",null,"01",null,null,null,null,null,null,null,null,null,null,null,null,null,null,null,0,0]
["RELLA WOMENS ESSENTIALLY","SOFTY19","SOFTY SLOUCH BEANIE","ANTLER","Antler",40,{"$f":"B17","v":0},40,"",null,"01",null,null,null,null,null,null,null,null,null,null,null,null,null,null,null,0,0]
["RELLA WOMENS ESSENTIALLY","SOFTY19","SOFTY SLOUCH BEANIE","BLACK","BLACK",40,{"$f":"B17","v":0},40,"",null,"01",null,null,null,null,null,null,null,null,null,null,null,null,null,null,null,0,0]
["RELLA WOMENS ESSENTIALLY","SOFTY19","SOFTY SLOUCH BEANIE","HEGREY","HEATHER GREY",40,{"$f":"B17","v":0},40,"",null,"01",null,null,null,null,null,null,null,null,null,null,null,null,null,null,null,0,0]
["RELLA WOMENS ESSENTIALLY","SOFTY19","SOFTY SLOUCH BEANIE","SEPROS","SEPIA ROSE",40,{"$f":"B17","v":0},40,"",null,"01",null,null,null,null,null,null,null,null,null,null,null,null,null,null,null,0,0]
["RELLA WOMENS ESSENTIALLY","COLTER11","COLTER SLIGHT OVERSIZE YARN POM","BLACK","BLACK",35,{"$f":"B17","v":0},35,"",null,"01",null,null,null,null,null,null,null,null,null,null,null,null,null,null,null,0,0]
["RELLA WOMENS ESSENTIALLY","COLTER11","COLTER SLIGHT OVERSIZE YARN POM","BRIGRE","BRIGHT RED",35,{"$f":"B17","v":0},35,"",null,"01",null,null,null,null,null,null,null,null,null,null,null,null,null,null,null,0,0]
["RELLA WOMENS ESSENTIALLY","COLTER11","COLTER SLIGHT OVERSIZE YARN POM","DEEPWA","DEEP WATERS",35,{"$f":"B17","v":0},35,"",null,"01",null,null,null,null,null,null,null,null,null,null,null,null,null,null,null,0,0]
["RELLA WOMENS ESSENTIALLY","COLTER11","COLTER SLIGHT OVERSIZE YARN POM","LHEGRY","LIGHT HEATHER GREY",35,{"$f":"B17","v":0},35,"",null,"01",null,null,null,null,null,null,null,null,null,null,null,null,null,null,null,0,0]
["RELLA WOMENS ESSENTIALLY","COLTER13","COLTER SLIGHT OVERSIZED FUR POM","BLACK","BLACK",45,{"$f":"B17","v":0},45,"",null,"01",null,null,null,null,null,null,null,null,null,null,null,null,null,null,null,0,0]
["RELLA WOMENS ESSENTIALLY","COLTER13","COLTER SLIGHT OVERSIZED FUR POM","BRIGRE","BRIGHT RED",45,{"$f":"B17","v":0},45,"",null,"01",null,null,null,null,null,null,null,null,null,null,null,null,null,null,null,0,0]
["RELLA WOMENS ESSENTIALLY","COLTER13","COLTER SLIGHT OVERSIZED FUR POM","DEEPWA","DEEP WATERS",45,{"$f":"B17","v":0},45,"",null,"01",null,null,null,null,null,null,null,null,null,null,null,null,null,null,null,0,0]
["RELLA WOMENS ESSENTIALLY","COLTER13","COLTER SLIGHT OVERSIZED FUR POM","LIGHTG","LIGHT HEATHER GREY",45,{"$f":"B17","v":0},45,"",null,"01",null,null,null,null,null,null,null,null,null,null,null,null,null,null,null,0,0]
["RELLA WOMENS ALL BLACK","MUCHA19","MUCHA SLOUCH/DOUBLE CUFF BEANIE","HEBLK","HEATHER BLACK",30,{"$f":"B17","v":0},30,"",null,"01",null,null,null,null,null,null,null,null,null,null,null,null,null,null,null,0,0]
["RELLA WOMENS ALL BLACK","DUSK16","DUSK CUFFED YARN POM BEANIE","BLACK","BLACK",25,{"$f":"B17","v":0},25,"",null,"01",null,null,null,null,null,null,null,null,null,null,null,null,null,null,null,0,0]
["RELLA WOMENS ALL BLACK","HELLA15","HELLA CUFFED BEANIE","BLACK","BLACK",25,{"$f":"B17","v":0},25,"",null,"01",null,null,null,null,null,null,null,null,null,null,null,null,null,null,null,0,0]
["RELLA WOMENS ALL BLACK","HELLA21","HELLA WOMENS MITTENS","BLACK","BLACK",22.5,{"$f":"B17","v":0},22.5,"",null,"01",null,null,null,null,null,null,null,null,null,null,null,null,null,null,null,0,0]
["RELLA WOMENS ALL BLACK","HELLA23","HELLA  LADIES SCARF","BLACK","BLACK",42.5,{"$f":"B17","v":0},42.5,"",null,"01",null,null,null,null,null,null,null,null,null,null,null,null,null,null,null,0,0]
["RELLA WOMENS ALL BLACK","QUIL16","QUIL CUFFED YARN POM BEANIE","BLACK","BLACK",30,{"$f":"B17","v":0},30,"",null,"01",null,null,null,null,null,null,null,null,null,null,null,null,null,null,null,0,0]
["RELLA WOMENS ALL BLACK","QUIL21","QUIL MITTENS","BLACK","BLACK",30,{"$f":"B17","v":0},30,"",null,"01",null,null,null,null,null,null,null,null,null,null,null,null,null,null,null,0,0]
["RELLA WOMENS ALL BLACK","QUIL23","QUIL SCARF","BLACK","BLACK",50,{"$f":"B17","v":0},50,"",null,"01",null,null,null,null,null,null,null,null,null,null,null,null,null,null,null,0,0]
["RELLA WM PATTERNESQUE","TYPIC15","TYPIC CUFFED BEANIE","BLACK","BLACK",30,{"$f":"B17","v":0},30,"",null,"01",null,null,null,null,null,null,null,null,null,null,null,null,null,null,null,0,0]
["RELLA WM PATTERNESQUE","TYPIC15","TYPIC CUFFED BEANIE","SEPROS","SEPIA ROSE",30,{"$f":"B17","v":0},30,"",null,"01",null,null,null,null,null,null,null,null,null,null,null,null,null,null,null,0,0]
["RELLA WM PATTERNESQUE","TYPIC21","TYPIC MITTENS","BLACK","BLACK",30,{"$f":"B17","v":0},30,"",null,"01",null,null,null,null,null,null,null,null,null,null,null,null,null,null,null,0,0]
["RELLA WM PATTERNESQUE","TYPIC21","TYPIC MITTENS","SEPROS","SEPIA ROSE",30,{"$f":"B17","v":0},30,"",null,"01",null,null,null,null,null,null,null,null,null,null,null,null,null,null,null,0,0]
["RELLA WM PATTERNESQUE","AMPLIF19","AMPLIFY CUFFED/ SLOUCH BEANIE","BLKMIX","BLACK MIX",25,{"$f":"B17","v":0},25,"",null,"01",null,null,null,null,null,null,null,null,null,null,null,null,null,null,null,0,0]
["RELLA WM PATTERNESQUE","AMPLIF19","AMPLIFY CUFFED/ SLOUCH BEANIE","DEEPWA","DEEP WATERS",25,{"$f":"B17","v":0},25,"",null,"01",null,null,null,null,null,null,null,null,null,null,null,null,null,null,null,0,0]
["RELLA WM PATTERNESQUE","AMPLIF19","AMPLIFY CUFFED/ SLOUCH BEANIE","PBLUSH","PALE BLUSH",25,{"$f":"B17","v":0},25,"",null,"01",null,null,null,null,null,null,null,null,null,null,null,null,null,null,null,0,0]
["RELLA WM PATTERNESQUE","LECHAT11","LE CHAT YARN POM BEANIE","CAMEL","CAMEL",25,{"$f":"B17","v":0},25,"",null,"01",null,null,null,null,null,null,null,null,null,null,null,null,null,null,null,0,0]
["RELLA WM PATTERNESQUE","LECHAT11","LE CHAT YARN POM BEANIE","DKHEGR","DARK HEATHER GREY",25,{"$f":"B17","v":0},25,"",null,"01",null,null,null,null,null,null,null,null,null,null,null,null,null,null,null,0,0]
["RELLA WM PATTERNESQUE","LECHAT21","LE CHAT MITTENS","CAMEL","CAMEL",25,{"$f":"B17","v":0},25,"",null,"01",null,null,null,null,null,null,null,null,null,null,null,null,null,null,null,0,0]
["RELLA WM PATTERNESQUE","LECHAT21","LE CHAT MITTENS","DKHEGR","DARK HEATHER GREY",25,{"$f":"B17","v":0},25,"",null,"01",null,null,null,null,null,null,null,null,null,null,null,null,null,null,null,0,0]
["RELLA WM PATTERNESQUE","MAZE15","MAZE CUFFED BEANIE","DEEPWA","DEEP WATERS",30,{"$f":"B17","v":0},30,"",null,"01",null,null,null,null,null,null,null,null,null,null,null,null,null,null,null,0,0]
["RELLA WM PATTERNESQUE","MAZE15","MAZE CUFFED BEANIE","DKCLAY","DARK CLAY",30,{"$f":"B17","v":0},30,"",null,"01",null,null,null,null,null,null,null,null,null,null,null,null,null,null,null,0,0]
["RELLA BLURRED SURFACES","JADEN11","JADEN REMOVABLE YARN POM","BLKMIX","BLACK MIX",25,{"$f":"B17","v":0},25,"",null,"01",null,null,null,null,null,null,null,null,null,null,null,null,null,null,null,0,0]
["RELLA BLURRED SURFACES","JADEN11","JADEN REMOVABLE YARN POM","GREYMI","GREYMIX",25,{"$f":"B17","v":0},25,"",null,"01",null,null,null,null,null,null,null,null,null,null,null,null,null,null,null,0,0]
["RELLA BLURRED SURFACES","JADEN11","JADEN REMOVABLE YARN POM","SROSMX","SEPIA ROSE MIX",25,{"$f":"B17","v":0},25,"",null,"01",null,null,null,null,null,null,null,null,null,null,null,null,null,null,null,0,0]
["RELLA BLURRED SURFACES","DEVONS11","DEVONSHIRE YARN POM BEANIE","DHALIA","DHALIA RED",27.5,{"$f":"B17","v":0},27.5,"",null,"01",null,null,null,null,null,null,null,null,null,null,null,null,null,null,null,0,0]
["RELLA BLURRED SURFACES","DEVONS11","DEVONSHIRE YARN POM BEANIE","GREY","GREY",27.5,{"$f":"B17","v":0},27.5,"",null,"01",null,null,null,null,null,null,null,null,null,null,null,null,null,null,null,0,0]
["RELLA BLURRED SURFACES","DEVONS11","DEVONSHIRE YARN POM BEANIE","PBLUSH","PALE BLUSH",27.5,{"$f":"B17","v":0},27.5,"",null,"01",null,null,null,null,null,null,null,null,null,null,null,null,null,null,null,0,0]
["RELLA BLURRED SURFACES","DEVONS11","DEVONSHIRE YARN POM BEANIE","SHEARL","SHEARLING",27.5,{"$f":"B17","v":0},27.5,"",null,"01",null,null,null,null,null,null,null,null,null,null,null,null,null,null,null,0,0]
["RELLA BLURRED SURFACES","DEVONS12","DEVONSHIRE FAUX FUR POM","DHALIA","DHALIA RED",30,{"$f":"B17","v":0},30,"",null,"01",null,null,null,null,null,null,null,null,null,null,null,null,null,null,null,0,0]
["RELLA BLURRED SURFACES","DEVONS12","DEVONSHIRE FAUX FUR POM","GREY","GREY",30,{"$f":"B17","v":0},30,"",null,"01",null,null,null,null,null,null,null,null,null,null,null,null,null,null,null,0,0]
["RELLA BLURRED SURFACES","DEVONS12","DEVONSHIRE FAUX FUR POM","PBLUSH","PALE BLUSH",30,{"$f":"B17","v":0},30,"",null,"01",null,null,null,null,null,null,null,null,null,null,null,null,null,null,null,0,0]
["RELLA BLURRED SURFACES","DEVONS12","DEVONSHIRE FAUX FUR POM","SHEARL","SHEARLING",30,{"$f":"B17","v":0},30,"",null,"01",null,null,null,null,null,null,null,null,null,null,null,null,null,null,null,0,0]
["RELLA BLURRED SURFACES","MARIAM22","MARIAM HEADBAND","BLACK","BLACK",15,{"$f":"B17","v":0},{"$f":"F152 - (F152 * (G152/100))","v":15},"",null,"01",null,null,null,null,null,null,null,null,null,null,null,null,null,null,null,{"$f":"SUM(L152:Z152)","v":0},{"$f":"AA152 * H152","v":0}]
["RELLA BLURRED SURFACES","MARIAM22","MARIAM HEADBAND","DKCLAY","DARK CLAY",15,{"$f":"B17","v":0},15,"",null,"01",null,null,null,null,null,null,null,null,null,null,null,null,null,null,null,0,0]
["RELLA BLURRED SURFACES","MARIAM22","MARIAM HEADBAND","MINYEL","MINERAL YELLOW",15,{"$f":"B17","v":0},15,"",null,"01",null,null,null,null,null,null,null,null,null,null,null,null,null,null,null,0,0]
["RELLA BLURRED SURFACES","MARIAM22","MARIAM HEADBAND","SEPROS","SEPIA ROSE",15,{"$f":"B17","v":0},15,"",null,"01",null,null,null,null,null,null,null,null,null,null,null,null,null,null,null,0,0]
["RELLA BLURRED SURFACES","NUVOLA19","NUVOLA SLOUCH BEANIE","BLACK","BLACK",25,{"$f":"B17","v":0},25,"",null,"01",null,null,null,null,null,null,null,null,null,null,null,null,null,null,null,0,0]
["RELLA BLURRED SURFACES","NUVOLA19","NUVOLA SLOUCH BEANIE","GREY","GREY",25,{"$f":"B17","v":0},25,"",null,"01",null,null,null,null,null,null,null,null,null,null,null,null,null,null,null,0,0]
["RELLA BLURRED SURFACES","NUVOLA19","NUVOLA SLOUCH BEANIE","MINK","MINK",25,{"$f":"B17","v":0},25,"",null,"01",null,null,null,null,null,null,null,null,null,null,null,null,null,null,null,0,0]
["RELLA BLURRED SURFACES","NUVOLA19","NUVOLA SLOUCH BEANIE","PBLUSH","PALE BLUSH",25,{"$f":"B17","v":0},25,"",null,"01",null,null,null,null,null,null,null,null,null,null,null,null,null,null,null,0,0]
["RELLA BLURRED SURFACES","NUVOLA23","NUVOLA SCARF","BLACK","BLACK",75,{"$f":"B17","v":0},75,"",null,"01",null,null,null,null,null,null,null,null,null,null,null,null,null,null,null,0,0]
["RELLA BLURRED SURFACES","NUVOLA23","NUVOLA SCARF","GREY","GREY",75,{"$f":"B17","v":0},75,"",null,"01",null,null,null,null,null,null,null,null,null,null,null,null,null,null,null,0,0]
["RELLA BLURRED SURFACES","NUVOLA23","NUVOLA SCARF","MINK","MINK",75,{"$f":"B17","v":0},75,"",null,"01",null,null,null,null,null,null,null,null,null,null,null,null,null,null,null,0,0]
["RELLA BLURRED SURFACES","NUVOLA23","NUVOLA SCARF","PBLUSH","PALE BLUSH",75,{"$f":"B17","v":0},75,"",null,"01",null,null,null,null,null,null,null,null,null,null,null,null,null,null,null,0,0]
["RELLA WM THE BOTTOM LINE","REBECA15","REBECA DOUBLE CUFFED BEANIE","BLACK","BLACK",37.5,{"$f":"B17","v":0},37.5,"",null,"01",null,null,null,null,null,null,null,null,null,null,null,null,null,null,null,0,0]
["RELLA WM THE BOTTOM LINE","REBECA15","REBECA DOUBLE CUFFED BEANIE","BRIGRE","BRIGHT RED",37.5,{"$f":"B17","v":0},37.5,"",null,"01",null,null,null,null,null,null,null,null,null,null,null,null,null,null,null,0,0]
["RELLA WM THE BOTTOM LINE","REBECA15","REBECA DOUBLE CUFFED BEANIE","CAMEL","CAMEL",37.5,{"$f":"B17","v":0},37.5,"",null,"01",null,null,null,null,null,null,null,null,null,null,null,null,null,null,null,0,0]
["RELLA WM THE BOTTOM LINE","REBECA15","REBECA DOUBLE CUFFED BEANIE","DKHGRY","DARK HEATHER GREY",37.5,{"$f":"B17","v":0},37.5,"",null,"01",null,null,null,null,null,null,null,null,null,null,null,null,null,null,null,0,0]
["RELLA WM THE BOTTOM LINE","SHELBY11","Cable Skull Yarn Pom Beanie","BLACK","BLACK",27.5,{"$f":"B17","v":0},27.5,"",null,"01",null,null,null,null,null,null,null,null,null,null,null,null,null,null,null,0,0]
["RELLA WM THE BOTTOM LINE","SHELBY11","Cable Skull Yarn Pom Beanie","HEGREY","HEATHER GREY",27.5,{"$f":"B17","v":0},27.5,"",null,"01",null,null,null,null,null,null,null,null,null,null,null,null,null,null,null,0,0]
["RELLA WM THE BOTTOM LINE","SHELBY11","Cable Skull Yarn Pom Beanie","WARMWH","WARM WHITE",27.5,{"$f":"B17","v":0},27.5,"",null,"01",null,null,null,null,null,null,null,null,null,null,null,null,null,null,null,0,0]
["RELLA WM THE BOTTOM LINE","ASHTON16","ASHTON CUFFED YARN POM BEANIE","BLACK","BLACK",35,{"$f":"B17","v":0},35,"",null,"01",null,null,null,null,null,null,null,null,null,null,null,null,null,null,null,0,0]
["RELLA WM THE BOTTOM LINE","ASHTON16","ASHTON CUFFED YARN POM BEANIE","DKHEGR","DARK HEATHER GREY",35,{"$f":"B17","v":0},35,"",null,"01",null,null,null,null,null,null,null,null,null,null,null,null,null,null,null,0,0]
["RELLA WM THE BOTTOM LINE","ASHTON16","ASHTON CUFFED YARN POM BEANIE","MINK","MINK",35,{"$f":"B17","v":0},35,"",null,"01",null,null,null,null,null,null,null,null,null,null,null,null,null,null,null,0,0]
["RELLA WM THE BOTTOM LINE","ACAPEL16","ACAPELA CUFFED YARM POM BEANIE","CAMEL","CAMEL",32.5,{"$f":"B17","v":0},32.5,"",null,"01",null,null,null,null,null,null,null,null,null,null,null,null,null,null,null,0,0]
["RELLA WM THE BOTTOM LINE","ACAPEL16","ACAPELA CUFFED YARM POM BEANIE","HEBLK","HEATHER BLACK",32.5,{"$f":"B17","v":0},32.5,"",null,"01",null,null,null,null,null,null,null,null,null,null,null,null,null,null,null,0,0]
["RELLA WM THE BOTTOM LINE","ACAPEL16","ACAPELA CUFFED YARM POM BEANIE","HEGREY","HEATHER GREY",32.5,{"$f":"B17","v":0},32.5,"",null,"01",null,null,null,null,null,null,null,null,null,null,null,null,null,null,null,0,0]
["RELLA WM THE BOTTOM LINE","SWEEN16","SWEEN CUFFED POM BEANIE","BLACK","BLACK",42.5,{"$f":"B17","v":0},42.5,"",null,"01",null,null,null,null,null,null,null,null,null,null,null,null,null,null,null,0,0]
["RELLA WM THE BOTTOM LINE","SWEEN16","SWEEN CUFFED POM BEANIE","DKCLAY","DARK CLAY",42.5,{"$f":"B17","v":0},42.5,"",null,"01",null,null,null,null,null,null,null,null,null,null,null,null,null,null,null,0,0]
["RELLA WM THE BOTTOM LINE","SWEEN16","SWEEN CUFFED POM BEANIE","HEGREY","HEATHER GREY",42.5,{"$f":"B17","v":0},42.5,"",null,"01",null,null,null,null,null,null,null,null,null,null,null,null,null,null,null,0,0]
["RELLA WM THE BOTTOM LINE","SWEEN16","SWEEN CUFFED POM BEANIE","MINYEL","MINERAL YELLOW",42.5,{"$f":"B17","v":0},42.5,"",null,"01",null,null,null,null,null,null,null,null,null,null,null,null,null,null,null,0,0]
["RELLA WM THE BOTTOM LINE","SWEEN18","SWEEN CUFFED FUR POM BEANIE","BLACK","BLACK",45,{"$f":"B17","v":0},45,"",null,"01",null,null,null,null,null,null,null,null,null,null,null,null,null,null,null,0,0]
["RELLA WM THE BOTTOM LINE","SWEEN18","SWEEN CUFFED FUR POM BEANIE","DKCLAY","DARK CLAY",45,{"$f":"B17","v":0},45,"",null,"01",null,null,null,null,null,null,null,null,null,null,null,null,null,null,null,0,0]
["RELLA WM THE BOTTOM LINE","SWEEN18","SWEEN CUFFED FUR POM BEANIE","HEGREY","HEATHER GREY",45,{"$f":"B17","v":0},45,"",null,"01",null,null,null,null,null,null,null,null,null,null,null,null,null,null,null,0,0]
["RELLA WM THE BOTTOM LINE","SWEEN18","SWEEN CUFFED FUR POM BEANIE","MINYEL","MINERAL YELLOW",45,{"$f":"B17","v":0},45,"",null,"01",null,null,null,null,null,null,null,null,null,null,null,null,null,null,null,0,0]
["RELLA WM ROVING ALONG","BETTO16","BETTO CUFF YARN POM BEANIE","BLACK","BLACK",25,{"$f":"B17","v":0},25,"",null,"01",null,null,null,null,null,null,null,null,null,null,null,null,null,null,null,0,0]
["RELLA WM ROVING ALONG","BETTO16","BETTO CUFF YARN POM BEANIE","DEEPWA","DEEP WATERS",25,{"$f":"B17","v":0},25,"",null,"01",null,null,null,null,null,null,null,null,null,null,null,null,null,null,null,0,0]
["RELLA WM ROVING ALONG","BETTO16","BETTO CUFF YARN POM BEANIE","DHALIA","DHALIA RED",25,{"$f":"B17","v":0},25,"",null,"01",null,null,null,null,null,null,null,null,null,null,null,null,null,null,null,0,0]
["RELLA WM ROVING ALONG","BETTO16","BETTO CUFF YARN POM BEANIE","HEGREY","HEATHER GREY",25,{"$f":"B17","v":0},25,"",null,"01",null,null,null,null,null,null,null,null,null,null,null,null,null,null,null,0,0]
["RELLA WM ROVING ALONG","BETTO16","BETTO CUFF YARN POM BEANIE","SEPROS","SEPIA ROSE",25,{"$f":"B17","v":0},25,"",null,"01",null,null,null,null,null,null,null,null,null,null,null,null,null,null,null,0,0]
["RELLA WM ROVING ALONG","BETTO16","BETTO CUFF YARN POM BEANIE","WARMWH","WARM WHITE",25,{"$f":"B17","v":0},25,"",null,"01",null,null,null,null,null,null,null,null,null,null,null,null,null,null,null,0,0]
["RELLA WM ROVING ALONG","BETTO17","BETTO CUFF FAUX FUR POM BEANIE","BLACK","BLACK",27.5,{"$f":"B17","v":0},27.5,"",null,"01",null,null,null,null,null,null,null,null,null,null,null,null,null,null,null,0,0]
["RELLA WM ROVING ALONG","BETTO17","BETTO CUFF FAUX FUR POM BEANIE","DEEPWA","DEEP WATERS",27.5,{"$f":"B17","v":0},27.5,"",null,"01",null,null,null,null,null,null,null,null,null,null,null,null,null,null,null,0,0]
["RELLA WM ROVING ALONG","BETTO17","BETTO CUFF FAUX FUR POM BEANIE","DHALIA","DHALIA RED",27.5,{"$f":"B17","v":0},27.5,"",null,"01",null,null,null,null,null,null,null,null,null,null,null,null,null,null,null,0,0]
["RELLA WM ROVING ALONG","BETTO17","BETTO CUFF FAUX FUR POM BEANIE","HEGREY","HEATHER GREY",27.5,{"$f":"B17","v":0},27.5,"",null,"01",null,null,null,null,null,null,null,null,null,null,null,null,null,null,null,0,0]
["RELLA WM ROVING ALONG","BETTO17","BETTO CUFF FAUX FUR POM BEANIE","SEPROS","SEPIA ROSE",27.5,{"$f":"B17","v":0},27.5,"",null,"01",null,null,null,null,null,null,null,null,null,null,null,null,null,null,null,0,0]
["RELLA WM ROVING ALONG","BETTO17","BETTO CUFF FAUX FUR POM BEANIE","WARMWH","WARM WHITE",27.5,{"$f":"B17","v":0},27.5,"",null,"01",null,null,null,null,null,null,null,null,null,null,null,null,null,null,null,0,0]
["RELLA WM ROVING ALONG","BETTO18","BETTO CUFF FUR POM BEANIE","BLACK","BLACK",32.5,{"$f":"B17","v":0},32.5,"",null,"01",null,null,null,null,null,null,null,null,null,null,null,null,null,null,null,0,0]
["RELLA WM ROVING ALONG","BETTO18","BETTO CUFF FUR POM BEANIE","DEEPWA","DEEP WATERS",32.5,{"$f":"B17","v":0},32.5,"",null,"01",null,null,null,null,null,null,null,null,null,null,null,null,null,null,null,0,0]
["RELLA WM ROVING ALONG","BETTO18","BETTO CUFF FUR POM BEANIE","DHALIA","DHALIA RED",32.5,{"$f":"B17","v":0},32.5,"",null,"01",null,null,null,null,null,null,null,null,null,null,null,null,null,null,null,0,0]
["RELLA WM ROVING ALONG","BETTO18","BETTO CUFF FUR POM BEANIE","HEGREY","HEATHER GREY",32.5,{"$f":"B17","v":0},32.5,"",null,"01",null,null,null,null,null,null,null,null,null,null,null,null,null,null,null,0,0]
["RELLA WM ROVING ALONG","BETTO18","BETTO CUFF FUR POM BEANIE","SEPROS","SEPIA ROSE",32.5,{"$f":"B17","v":0},32.5,"",null,"01",null,null,null,null,null,null,null,null,null,null,null,null,null,null,null,0,0]
["RELLA WM ROVING ALONG","BETTO18","BETTO CUFF FUR POM BEANIE","WARMWH","WARM WHITE",32.5,{"$f":"B17","v":0},32.5,"",null,"01",null,null,null,null,null,null,null,null,null,null,null,null,null,null,null,0,0]
["RELLA WM ROVING ALONG","BETTO10","BETTO BEANIE","BLACK","BLACK",20,{"$f":"B17","v":0},20,"",null,"01",null,null,null,null,null,null,null,null,null,null,null,null,null,null,null,0,0]
["RELLA WM ROVING ALONG","BETTO10","BETTO BEANIE","DEEPWA","DEEP WATERS",20,{"$f":"B17","v":0},20,"",null,"01",null,null,null,null,null,null,null,null,null,null,null,null,null,null,null,0,0]
["RELLA WM ROVING ALONG","BETTO10","BETTO BEANIE","DHALIA","DHALIA RED",20,{"$f":"B17","v":0},20,"",null,"01",null,null,null,null,null,null,null,null,null,null,null,null,null,null,null,0,0]
["RELLA WM ROVING ALONG","BETTO10","BETTO BEANIE","HEGREY","HEATHER GREY",20,{"$f":"B17","v":0},20,"",null,"01",null,null,null,null,null,null,null,null,null,null,null,null,null,null,null,0,0]
["RELLA WM ROVING ALONG","BETTO10","BETTO BEANIE","SEPROS","SEPIA ROSE",20,{"$f":"B17","v":0},20,"",null,"01",null,null,null,null,null,null,null,null,null,null,null,null,null,null,null,0,0]
["RELLA WM ROVING ALONG","BETTO10","BETTO BEANIE","WARMWH","WARM WHITE",20,{"$f":"B17","v":0},20,"",null,"01",null,null,null,null,null,null,null,null,null,null,null,null,null,null,null,0,0]
["RELLA WM ROVING ALONG","BETTO11","BETTO YARN POM BEANIE","BLACK","BLACK",22.5,{"$f":"B17","v":0},22.5,"",null,"01",null,null,null,null,null,null,null,null,null,null,null,null,null,null,null,0,0]
["RELLA WM ROVING ALONG","BETTO11","BETTO YARN POM BEANIE","DEEPWA","DEEP WATERS",22.5,{"$f":"B17","v":0},22.5,"",null,"01",null,null,null,null,null,null,null,null,null,null,null,null,null,null,null,0,0]
["RELLA WM ROVING ALONG","BETTO11","BETTO YARN POM BEANIE","DHALIA","DHALIA RED",22.5,{"$f":"B17","v":0},22.5,"",null,"01",null,null,null,null,null,null,null,null,null,null,null,null,null,null,null,0,0]
["RELLA WM ROVING ALONG","BETTO11","BETTO YARN POM BEANIE","HEGREY","HEATHER GREY",22.5,{"$f":"B17","v":0},22.5,"",null,"01",null,null,null,null,null,null,null,null,null,null,null,null,null,null,null,0,0]
["RELLA WM ROVING ALONG","BETTO11","BETTO YARN POM BEANIE","SEPROS","SEPIA ROSE",22.5,{"$f":"B17","v":0},22.5,"",null,"01",null,null,null,null,null,null,null,null,null,null,null,null,null,null,null,0,0]
["RELLA WM ROVING ALONG","BETTO11","BETTO YARN POM BEANIE","WARMWH","WARM WHITE",22.5,{"$f":"B17","v":0},22.5,"",null,"01",null,null,null,null,null,null,null,null,null,null,null,null,null,null,null,0,0]
["RELLA WM ROVING ALONG","BETTO12","BETTO FAUX FUR POM BEANIE","BLACK","BLACK",25,{"$f":"B17","v":0},25,"",null,"01",null,null,null,null,null,null,null,null,null,null,null,null,null,null,null,0,0]
["RELLA WM ROVING ALONG","BETTO12","BETTO FAUX FUR POM BEANIE","DEEPWA","DEEP WATERS",25,{"$f":"B17","v":0},{"$f":"F216 - (F216 * (G216/100))","v":25},"",null,"01",null,null,null,null,null,null,null,null,null,null,null,null,null,null,null,{"$f":"SUM(L216:Z216)","v":0},{"$f":"AA216 * H216","v":0}]
["RELLA WM ROVING ALONG","BETTO12","BETTO FAUX FUR POM BEANIE","DHALIA","DHALIA RED",25,{"$f":"B17","v":0},25,"",null,"01",null,null,null,null,null,null,null,null,null,null,null,null,null,null,null,0,0]
["RELLA WM ROVING ALONG","BETTO12","BETTO FAUX FUR POM BEANIE","HEGREY","HEATHER GREY",25,{"$f":"B17","v":0},25,"",null,"01",null,null,null,null,null,null,null,null,null,null,null,null,null,null,null,0,0]
["RELLA WM ROVING ALONG","BETTO12","BETTO FAUX FUR POM BEANIE","SEPROS","SEPIA ROSE",25,{"$f":"B17","v":0},25,"",null,"01",null,null,null,null,null,null,null,null,null,null,null,null,null,null,null,0,0]
["RELLA WM ROVING ALONG","BETTO12","BETTO FAUX FUR POM BEANIE","WARMWH","WARM WHITE",25,{"$f":"B17","v":0},25,"",null,"01",null,null,null,null,null,null,null,null,null,null,null,null,null,null,null,0,0]
["RELLA WM ROVING ALONG","BETTO22","BETTO HEADBAND","BLACK","BLACK",17.5,{"$f":"B17","v":0},17.5,"",null,"01",null,null,null,null,null,null,null,null,null,null,null,null,null,null,null,0,0]
["RELLA WM ROVING ALONG","BETTO22","BETTO HEADBAND","DEEPWA","DEEP WATERS",17.5,{"$f":"B17","v":0},17.5,"",null,"01",null,null,null,null,null,null,null,null,null,null,null,null,null,null,null,0,0]
["RELLA WM ROVING ALONG","BETTO22","BETTO HEADBAND","DHALIA","DHALIA RED",17.5,{"$f":"B17","v":0},17.5,"",null,"01",null,null,null,null,null,null,null,null,null,null,null,null,null,null,null,0,0]
["RELLA WM ROVING ALONG","BETTO22","BETTO HEADBAND","HEGREY","HEATHER GREY",17.5,{"$f":"B17","v":0},17.5,"",null,"01",null,null,null,null,null,null,null,null,null,null,null,null,null,null,null,0,0]
["RELLA WM ROVING ALONG","BETTO22","BETTO HEADBAND","SEPROS","SEPIA ROSE",17.5,{"$f":"B17","v":0},17.5,"",null,"01",null,null,null,null,null,null,null,null,null,null,null,null,null,null,null,0,0]
["RELLA WM ROVING ALONG","BETTO22","BETTO HEADBAND","WARMWH","WARM WHITE",17.5,{"$f":"B17","v":0},17.5,"",null,"01",null,null,null,null,null,null,null,null,null,null,null,null,null,null,null,0,0]
["RELLA WM ROVING ALONG","BETTO21","BETTO WOMEN S MITTENS","BLACK","BLACK",18,{"$f":"B17","v":0},18,"",null,"01",null,null,null,null,null,null,null,null,null,null,null,null,null,null,null,0,0]
["RELLA WM ROVING ALONG","BETTO21","BETTO WOMEN S MITTENS","DEEPWA","DEEP WATERS",18,{"$f":"B17","v":0},18,"",null,"01",null,null,null,null,null,null,null,null,null,null,null,null,null,null,null,0,0]
["RELLA WM ROVING ALONG","BETTO21","BETTO WOMEN S MITTENS","DHALIA","DHALIA RED",18,{"$f":"B17","v":0},18,"",null,"01",null,null,null,null,null,null,null,null,null,null,null,null,null,null,null,0,0]
["RELLA WM ROVING ALONG","BETTO21","BETTO WOMEN S MITTENS","HEGREY","HEATHER GREY",18,{"$f":"B17","v":0},18,"",null,"01",null,null,null,null,null,null,null,null,null,null,null,null,null,null,null,0,0]
["RELLA WM ROVING ALONG","BETTO21","BETTO WOMEN S MITTENS","SEPROS","SEPIA ROSE",18,{"$f":"B17","v":0},18,"",null,"01",null,null,null,null,null,null,null,null,null,null,null,null,null,null,null,0,0]
["RELLA WM ROVING ALONG","BETTO21","BETTO WOMEN S MITTENS","WARMWH","WARM WHITE",18,{"$f":"B17","v":0},18,"",null,"01",null,null,null,null,null,null,null,null,null,null,null,null,null,null,null,0,0]
["RELLA WM ROVING ALONG","NOSTAL15","Rib Skull Cuff Beanie","BLACK","Black",22.5,{"$f":"B17","v":0},22.5,"",null,"01",null,null,null,null,null,null,null,null,null,null,null,null,null,null,null,0,0]
["RELLA WM ROVING ALONG","NOSTAL15","Rib Skull Cuff Beanie","HEGREY","Heather Grey",22.5,{"$f":"B17","v":0},22.5,"",null,"01",null,null,null,null,null,null,null,null,null,null,null,null,null,null,null,0,0]
["RELLA WM ROVING ALONG","NOSTAL15","Rib Skull Cuff Beanie","SEPROS","SEPIA ROSE",22.5,{"$f":"B17","v":0},22.5,"",null,"01",null,null,null,null,null,null,null,null,null,null,null,null,null,null,null,0,0]
["RELLA WM ROVING ALONG","NOSTAL15","Rib Skull Cuff Beanie","WARMWH","Warm White",22.5,{"$f":"B17","v":0},22.5,"",null,"01",null,null,null,null,null,null,null,null,null,null,null,null,null,null,null,0,0]
["RELLA WM ROVING ALONG","NOSTAL16","Rib Skull Cuff Yarn Pom","BLACK","Black",25,{"$f":"B17","v":0},25,"",null,"01",null,null,null,null,null,null,null,null,null,null,null,null,null,null,null,0,0]
["RELLA WM ROVING ALONG","NOSTAL16","Rib Skull Cuff Yarn Pom","HEGREY","Heather Grey",25,{"$f":"B17","v":0},25,"",null,"01",null,null,null,null,null,null,null,null,null,null,null,null,null,null,null,0,0]
["RELLA WM ROVING ALONG","NOSTAL16","Rib Skull Cuff Yarn Pom","SEPROS","SEPIA ROSE",25,{"$f":"B17","v":0},25,"",null,"01",null,null,null,null,null,null,null,null,null,null,null,null,null,null,null,0,0]
["RELLA WM ROVING ALONG","NOSTAL16","Rib Skull Cuff Yarn Pom","WARMWH","Warm White",25,{"$f":"B17","v":0},25,"",null,"01",null,null,null,null,null,null,null,null,null,null,null,null,null,null,null,0,0]
["RELLA WM ROVING ALONG","NOSTAL17","NOSTALGIA CUFF FAUX FUR POM","BLACK","Black",27.5,{"$f":"B17","v":0},27.5,"",null,"01",null,null,null,null,null,null,null,null,null,null,null,null,null,null,null,0,0]
["RELLA WM ROVING ALONG","NOSTAL17","NOSTALGIA CUFF FAUX FUR POM","HEGREY","Heather Grey",27.5,{"$f":"B17","v":0},27.5,"",null,"01",null,null,null,null,null,null,null,null,null,null,null,null,null,null,null,0,0]
["RELLA WM ROVING ALONG","NOSTAL17","NOSTALGIA CUFF FAUX FUR POM","SEPROS","SEPIA ROSE",27.5,{"$f":"B17","v":0},27.5,"",null,"01",null,null,null,null,null,null,null,null,null,null,null,null,null,null,null,0,0]
["RELLA WM ROVING ALONG","NOSTAL17","NOSTALGIA CUFF FAUX FUR POM","WARMWH","Warm White",27.5,{"$f":"B17","v":0},27.5,"",null,"01",null,null,null,null,null,null,null,null,null,null,null,null,null,null,null,0,0]
["RELLA WM ROVING ALONG","NOSTAL22","NOSTALGIA HEADBAND","BLACK","BLACK",17.5,{"$f":"B17","v":0},17.5,"",null,"01",null,null,null,null,null,null,null,null,null,null,null,null,null,null,null,0,0]
["RELLA WM ROVING ALONG","NOSTAL22","NOSTALGIA HEADBAND","HEGREY","HEATHER GREY",17.5,{"$f":"B17","v":0},17.5,"",null,"01",null,null,null,null,null,null,null,null,null,null,null,null,null,null,null,0,0]
["RELLA WM ROVING ALONG","NOSTAL22","NOSTALGIA HEADBAND","SEPROS","SEPIA ROSE",17.5,{"$f":"B17","v":0},17.5,"",null,"01",null,null,null,null,null,null,null,null,null,null,null,null,null,null,null,0,0]
["RELLA WM ROVING ALONG","NOSTAL21","NOSTALGIA MITTENS","BLACK","Black",20,{"$f":"B17","v":0},20,"",null,"01",null,null,null,null,null,null,null,null,null,null,null,null,null,null,null,0,0]
["RELLA WM ROVING ALONG","NOSTAL21","NOSTALGIA MITTENS","HEGREY","Heather Grey",20,{"$f":"B17","v":0},20,"",null,"01",null,null,null,null,null,null,null,null,null,null,null,null,null,null,null,0,0]
["RELLA WM ROVING ALONG","NOSTAL21","NOSTALGIA MITTENS","SEPROS","SEPIA ROSE",20,{"$f":"B17","v":0},20,"",null,"01",null,null,null,null,null,null,null,null,null,null,null,null,null,null,null,0,0]
["RELLA WM ROVING ALONG","NOSTAL21","NOSTALGIA MITTENS","WARMWH","Warm White",20,{"$f":"B17","v":0},20,"",null,"01",null,null,null,null,null,null,null,null,null,null,null,null,null,null,null,0,0]
["RELLA WM ROVING ALONG","NOSTAL23","Rib Skull Scarf","BLACK","Black",40,{"$f":"B17","v":0},40,"",null,"01",null,null,null,null,null,null,null,null,null,null,null,null,null,null,null,0,0]
["RELLA UNISEX ROVING ALONG","NOSTAL23","Rib Skull Scarf","HEGREY","Heather Grey",40,{"$f":"B17","v":0},40,"",null,"01",null,null,null,null,null,null,null,null,null,null,null,null,null,null,null,0,0]
["RELLA WM ROVING ALONG","NOSTAL23","Rib Skull Scarf","SEPROS","SEPIA ROSE",40,{"$f":"B17","v":0},40,"",null,"01",null,null,null,null,null,null,null,null,null,null,null,null,null,null,null,0,0]
["RELLA UNISEX ROVING ALONG","NOSTAL23","Rib Skull Scarf","WARMWH","Warm White",40,{"$f":"B17","v":0},40,"",null,"01",null,null,null,null,null,null,null,null,null,null,null,null,null,null,null,0,0]
["RELLA WM ROVING ALONG","TRUFFL15","TRUFFLES BEANIE","BLACK","BLACK",22.5,{"$f":"B17","v":0},22.5,"",null,"01",null,null,null,null,null,null,null,null,null,null,null,null,null,null,null,0,0]
["RELLA WM ROVING ALONG","TRUFFL15","TRUFFLES BEANIE","DEEPWA","DEEP WATERS",22.5,{"$f":"B17","v":0},22.5,"",null,"01",null,null,null,null,null,null,null,null,null,null,null,null,null,null,null,0,0]
["RELLA WM ROVING ALONG","TRUFFL15","TRUFFLES BEANIE","HEGREY","HEATHER GREY",22.5,{"$f":"B17","v":0},22.5,"",null,"01",null,null,null,null,null,null,null,null,null,null,null,null,null,null,null,0,0]
["RELLA WM ROVING ALONG","TRUFFL15","TRUFFLES BEANIE","WARMWH","WARM WHITE",22.5,{"$f":"B17","v":0},22.5,"",null,"01",null,null,null,null,null,null,null,null,null,null,null,null,null,null,null,0,0]
["RELLA WM ROVING ALONG","TRUFFL16","TRUFFLES  CUFF YARN  POM BEANIE","BLACK","BLACK",25,{"$f":"B17","v":0},25,"",null,"01",null,null,null,null,null,null,null,null,null,null,null,null,null,null,null,0,0]
["RELLA WM ROVING ALONG","TRUFFL16","TRUFFLES  CUFF YARN  POM BEANIE","DEEPWA","DEEP WATERS",25,{"$f":"B17","v":0},25,"",null,"01",null,null,null,null,null,null,null,null,null,null,null,null,null,null,null,0,0]
["RELLA WM ROVING ALONG","TRUFFL16","TRUFFLES  CUFF YARN  POM BEANIE","HEGREY","HEATHER GREY",25,{"$f":"B17","v":0},25,"",null,"01",null,null,null,null,null,null,null,null,null,null,null,null,null,null,null,0,0]
["RELLA WM ROVING ALONG","TRUFFL16","TRUFFLES  CUFF YARN  POM BEANIE","WARMWH","WARM WHITE",25,{"$f":"B17","v":0},25,"",null,"01",null,null,null,null,null,null,null,null,null,null,null,null,null,null,null,0,0]
["RELLA WM ROVING ALONG","TRUFFL17","TRUFFLES CUFF FAUX FUR POM BEANIE","BLACK","BLACK",27,{"$f":"B17","v":0},27,"",null,"01",null,null,null,null,null,null,null,null,null,null,null,null,null,null,null,0,0]
["RELLA WM ROVING ALONG","TRUFFL17","TRUFFLES CUFF FAUX FUR POM BEANIE","DEEPWA","DEEP WATERS",27,{"$f":"B17","v":0},27,"",null,"01",null,null,null,null,null,null,null,null,null,null,null,null,null,null,null,0,0]
["RELLA WM ROVING ALONG","TRUFFL17","TRUFFLES CUFF FAUX FUR POM BEANIE","HEGREY","HEATHER GREY",27,{"$f":"B17","v":0},27,"",null,"01",null,null,null,null,null,null,null,null,null,null,null,null,null,null,null,0,0]
["RELLA WM ROVING ALONG","TRUFFL17","TRUFFLES CUFF FAUX FUR POM BEANIE","WARMWH","WARM WHITE",27,{"$f":"B17","v":0},27,"",null,"01",null,null,null,null,null,null,null,null,null,null,null,null,null,null,null,0,0]
["RELLA WM ROVING ALONG","TRUFFL10","TRUFFLES  BEANIE","BLACK","BLACK",20,{"$f":"B17","v":0},20,"",null,"01",null,null,null,null,null,null,null,null,null,null,null,null,null,null,null,0,0]
["RELLA WM ROVING ALONG","TRUFFL10","TRUFFLES  BEANIE","DEEPWA","DEEP WATERS",20,{"$f":"B17","v":0},20,"",null,"01",null,null,null,null,null,null,null,null,null,null,null,null,null,null,null,0,0]
["RELLA WM ROVING ALONG","TRUFFL10","TRUFFLES  BEANIE","HEGREY","HEATHER GREY",20,{"$f":"B17","v":0},20,"",null,"01",null,null,null,null,null,null,null,null,null,null,null,null,null,null,null,0,0]
["RELLA WM ROVING ALONG","TRUFFL10","TRUFFLES  BEANIE","WARMWH","WARM WHITE",20,{"$f":"B17","v":0},20,"",null,"01",null,null,null,null,null,null,null,null,null,null,null,null,null,null,null,0,0]
["RELLA WM ROVING ALONG","TRUFFL11","TRUFFLES YARN  POM BEANIE","BLACK","BLACK",20,{"$f":"B17","v":0},20,"",null,"01",null,null,null,null,null,null,null,null,null,null,null,null,null,null,null,0,0]
["RELLA WM ROVING ALONG","TRUFFL11","TRUFFLES YARN  POM BEANIE","DEEPWA","DEEP WATERS",20,{"$f":"B17","v":0},20,"",null,"01",null,null,null,null,null,null,null,null,null,null,null,null,null,null,null,0,0]
["RELLA WM ROVING ALONG","TRUFFL11","TRUFFLES YARN  POM BEANIE","HEGREY","HEATHER GREY",20,{"$f":"B17","v":0},20,"",null,"01",null,null,null,null,null,null,null,null,null,null,null,null,null,null,null,0,0]
["RELLA WM ROVING ALONG","TRUFFL11","TRUFFLES YARN  POM BEANIE","WARMWH","WARM WHITE",20,{"$f":"B17","v":0},20,"",null,"01",null,null,null,null,null,null,null,null,null,null,null,null,null,null,null,0,0]
["RELLA WM ROVING ALONG","TRUFFL12","TRUFFLES FAUX FUR  POM BEANIE","BLACK","BLACK",22.5,{"$f":"B17","v":0},22.5,"",null,"01",null,null,null,null,null,null,null,null,null,null,null,null,null,null,null,0,0]
["RELLA WM ROVING ALONG","TRUFFL12","TRUFFLES FAUX FUR  POM BEANIE","DEEPWA","DEEP WATERS",22.5,{"$f":"B17","v":0},22.5,"",null,"01",null,null,null,null,null,null,null,null,null,null,null,null,null,null,null,0,0]
["RELLA WM ROVING ALONG","TRUFFL12","TRUFFLES FAUX FUR  POM BEANIE","HEGREY","HEATHER GREY",22.5,{"$f":"B17","v":0},22.5,"",null,"01",null,null,null,null,null,null,null,null,null,null,null,null,null,null,null,0,0]
["RELLA WM ROVING ALONG","TRUFFL12","TRUFFLES FAUX FUR  POM BEANIE","WARMWH","WARM WHITE",22.5,{"$f":"B17","v":0},{"$f":"F279 - (F279 * (G279/100))","v":22.5},"",null,"01",null,null,null,null,null,null,null,null,null,null,null,null,null,null,null,{"$f":"SUM(L279:Z279)","v":0},{"$f":"AA279 * H279","v":0}]
["RELLA WM ROVING ALONG","MISTY16","MISTY CUFFED YARN POM BEANIE","SEPROS","SEPIA ROSE",27.5,{"$f":"B17","v":0},27.5,"",null,"01",null,null,null,null,null,null,null,null,null,null,null,null,null,null,null,0,0]
["RELLA WM ROVING ALONG","MISTY16","MISTY CUFFED YARN POM BEANIE","WARMWH","WARM WHITE",27.5,{"$f":"B17","v":0},27.5,"",null,"01",null,null,null,null,null,null,null,null,null,null,null,null,null,null,null,0,0]
["RELLA WM ROVING ALONG","COLUMB16","COLUMBUS CUFF YARN POM BEANIE","BLKMIX","BLACK MIX",25,{"$f":"B17","v":0},25,"",null,"01",null,null,null,null,null,null,null,null,null,null,null,null,null,null,null,0,0]
["RELLA WM ROVING ALONG","COLUMB16","COLUMBUS CUFF YARN POM BEANIE","WARMWH","WARM WHITE",25,{"$f":"B17","v":0},25,"",null,"01",null,null,null,null,null,null,null,null,null,null,null,null,null,null,null,0,0]
["RELLA WM ROVING ALONG","COLUMB21","COLUMBUS MITTENS","BLKMIX","BLACK MIX",20,{"$f":"B17","v":0},20,"",null,"01",null,null,null,null,null,null,null,null,null,null,null,null,null,null,null,0,0]
["RELLA WM ROVING ALONG","COLUMB21","COLUMBUS MITTENS","WARMWH","WARM WHITE",20,{"$f":"B17","v":0},20,"",null,"01",null,null,null,null,null,null,null,null,null,null,null,null,null,null,null,0,0]
["RELLA WM ROVING ALONG","HUCKAB11","HUCKABEE YARN POM BEANIE","BLKMIX","BLACK MIX",20,{"$f":"B17","v":0},20,"",null,"01",null,null,null,null,null,null,null,null,null,null,null,null,null,null,null,0,0]
["RELLA WM ROVING ALONG","HUCKAB11","HUCKABEE YARN POM BEANIE","HEGREY","HEATHER GREY",20,{"$f":"B17","v":0},20,"",null,"01",null,null,null,null,null,null,null,null,null,null,null,null,null,null,null,0,0]
["RELLA WOMENS WARM HANDS","LUMINA29","WOMENS SCREEN TOUCH GLOVE","BLACK","BLACK",40,{"$f":"B17","v":0},40,"",null,"05",null,null,null,null,null,null,null,null,null,null,null,null,null,null,null,0,0]
["RELLA WOMENS WARM HANDS","LUMINA29","WOMENS SCREEN TOUCH GLOVE","BRIGRE","BRIGHT RED",40,{"$f":"B17","v":0},40,"",null,"05",null,null,null,null,null,null,null,null,null,null,null,null,null,null,null,0,0]
["RELLA WOMENS WARM HANDS","LUCIA29","WOMENS SCREEN TOUCH GLOVE","BLACK","BLACK",50,{"$f":"B17","v":0},50,"",null,"05",null,null,null,null,null,null,null,null,null,null,null,null,null,null,null,0,0]
["RELLA WOMENS WARM HANDS","LUCIA29","WOMENS SCREEN TOUCH GLOVE","HAZNUT","HAZELNUT",50,{"$f":"B17","v":0},50,"",null,"05",null,null,null,null,null,null,null,null,null,null,null,null,null,null,null,0,0]

{"sheet":"SizePack","index":1,"n_rows":292,"n_cols":9,"rows_kept":292,"cut":false,"hidden":true,"merged":[]}
["NumRows",269,null,"B - BULK"]
["RangeFrom",24,null,"C - CONFIRMED ORDER"]
["RangeTo",292,null,"IM - IMMEDIATE"]
[null,null,null,"PR - PROMO"]
[null,null,null,"R - RESERVE ORDER"]
[null,null,null,"SP - SAMPLES"]
[]
[]
[]
[]
[]
[]
[]
[]
[]
[]
[]
[]
[]
[]
[]
[]
[]
["STASH10","","BLACK","01","",0]
["STASH10","","HEGREY","01","",0]
["STASH10","","HENAVY","01","",0]
["STASH10","","MINK","01","",0]
["STASH19","","BLACK","01","",0]
["STASH19","","HEGREY","01","",0]
["STASH19","","HENAVY","01","",0]
["STASH19","","MINK","01","",0]
["STASH19","","SEPROS","01","",0]
["HADDOC15","","BLACK","01","",0]
["HADDOC15","","DARKOL","01","",0]
["HADDOC15","","LIGHTG","01","",0]
["HADDOC15","","PINOT","01","",0]
["COMPA15","","BLACK","01","",0]
["COMPA15","","DKCLAY","01","",0]
["COMPA15","","DKHGRY","01","",0]
["COMPA15","","DPWATR","01","",0]
["CRAFTO15","","BLACK","01","",0]
["CRAFTO15","","DPWATR","01","",0]
["CRAFTO15","","GREY","01","",0]
["MARLIE15","","BLKMIX","01","",0]
["MARLIE15","","DPWAMX","01","",0]
["MARLIE15","","GREYMI","01","",0]
["MARLIE15","","NAVMIX","01","",0]
["MARLIE16","","BLKMIX","01","",0]
["MARLIE16","","DPWAMX","01","",0]
["MARLIE16","","GREYMI","01","",0]
["MARLIE16","","NAVMIX","01","",0]
["KENNY10","","BLKMIX","01","",0]
["KENNY10","","DPWAMX","01","",0]
["KENNY10","","GREYMI","01","",0]
["KENNY10","","NAVMIX","01","",0]
["KENNY11","","BLKMIX","01","",0]
["KENNY11","","DPWAMX","01","",0]
["KENNY11","","GREYMI","01","",0]
["KENNY11","","NAVMIX","01","",0]
["WILSON19","","BLKMIX","01","",0]
["WILSON19","","NAVMIX","01","",0]
["WILSON19","","PINOMX","01","",0]
["WILSON23","","BLKMIX","01","",0]
["WILSON23","","NAVMIX","01","",0]
["WILSON23","","PINOMX","01","",0]
["STATIO15","","BLKMIX","01","",0]
["STATIO15","","NAVMIX","01","",0]
["STATIO23","","BLKMIX","01","",0]
["STATIO23","","NAVMIX","01","",0]
["ARLO15","","BLACK","01","",0]
["ARLO15","","DKCLAY","01","",0]
["ARLO15","","HEGREY","01","",0]
["ARLO15","","PINOT","01","",0]
["SHIRE15","","BLKMIX","01","",0]
["SHIRE15","","DKHGMX","01","",0]
["SHIRE15","","NAVMIX","01","",0]
["SCOTTS15","","HEBKMX","01","",0]
["BURB15","","DKHGMX","01","",0]
["BURB23","","DKHGMX","01","",0]
["BEGOOD10","","BLACK","01","",0]
["BEGOOD10","","DEEPWA","01","",0]
["BEGOOD10","","DKHEGR","01","",0]
["BEGOOD10","","NAVY","01","",0]
["MAXIM15","","BLACK","01","",0]
["MAXIM15","","DEEPWA","01","",0]
["MAXIM15","","DKHEGR","01","",0]
["MAXIM15","","NAVY","01","",0]
["BLOCK16","","BLKMIX","01","",0]
["BLOCK16","","NAVMIX","01","",0]
["LOUIE29","","BLACK","05","",null,0,null,0]
["LOUIE29","","DKHEGR","05","",null,0,null,0]
["ludo29","","BLACK","05","",null,0,null,0]
["ludo29","","HAZNUT","05","",null,0,null,0]
["MADIGA10","","BLACK","01","",0]
["MADIGA10","","HEGREY","01","",0]
["SOFTY15","","ANTLER","01","",0]
["SOFTY15","","BLACK","01","",0]
["SOFTY15","","HEGREY","01","",0]
["SOFTY15","","SEPROS","01","",0]
["SOFTY16","","ANTLER","01","",0]
["SOFTY16","","BLACK","01","",0]
["SOFTY16","","HEGREY","01","",0]
["SOFTY16","","SEPROS","01","",0]
["SOFTY18","","ANTLER","01","",0]
["SOFTY18","","BLACK","01","",0]
["SOFTY18","","HEGREY","01","",0]
["SOFTY18","","SEPROS","01","",0]
["SOFTY19","","ANTLER","01","",0]
["SOFTY19","","BLACK","01","",0]
["SOFTY19","","HEGREY","01","",0]
["SOFTY19","","SEPROS","01","",0]
["COLTER11","","BLACK","01","",0]
["COLTER11","","BRIGRE","01","",0]
["COLTER11","","DEEPWA","01","",0]
["COLTER11","","LHEGRY","01","",0]
["COLTER13","","BLACK","01","",0]
["COLTER13","","BRIGRE","01","",0]
["COLTER13","","DEEPWA","01","",0]
["COLTER13","","LIGHTG","01","",0]
["MUCHA19","","HEBLK","01","",0]
["DUSK16","","BLACK","01","",0]
["HELLA15","","BLACK","01","",0]
["HELLA21","","BLACK","01","",0]
["HELLA23","","BLACK","01","",0]
["QUIL16","","BLACK","01","",0]
["QUIL21","","BLACK","01","",0]
["QUIL23","","BLACK","01","",0]
["TYPIC15","","BLACK","01","",0]
["TYPIC15","","SEPROS","01","",0]
["TYPIC21","","BLACK","01","",0]
["TYPIC21","","SEPROS","01","",0]
["AMPLIF19","","BLKMIX","01","",0]
["AMPLIF19","","DEEPWA","01","",0]
["AMPLIF19","","PBLUSH","01","",0]
["LECHAT11","","CAMEL","01","",0]
["LECHAT11","","DKHEGR","01","",0]
["LECHAT21","","CAMEL","01","",0]
["LECHAT21","","DKHEGR","01","",0]
["MAZE15","","DEEPWA","01","",0]
["MAZE15","","DKCLAY","01","",0]
["JADEN11","","BLKMIX","01","",0]
["JADEN11","","GREYMI","01","",0]
["JADEN11","","SROSMX","01","",0]
["DEVONS11","","DHALIA","01","",0]
["DEVONS11","","GREY","01","",0]
["DEVONS11","","PBLUSH","01","",0]
["DEVONS11","","SHEARL","01","",0]
["DEVONS12","","DHALIA","01","",0]
["DEVONS12","","GREY","01","",0]
["DEVONS12","","PBLUSH","01","",0]
["DEVONS12","","SHEARL","01","",0]
["MARIAM22","","BLACK","01","",0]
["MARIAM22","","DKCLAY","01","",0]
["MARIAM22","","MINYEL","01","",0]
["MARIAM22","","SEPROS","01","",0]
["NUVOLA19","","BLACK","01","",0]
["NUVOLA19","","GREY","01","",0]
["NUVOLA19","","MINK","01","",0]
["NUVOLA19","","PBLUSH","01","",0]
["NUVOLA23","","BLACK","01","",0]
["NUVOLA23","","GREY","01","",0]
["NUVOLA23","","MINK","01","",0]
["NUVOLA23","","PBLUSH","01","",0]
["REBECA15","","BLACK","01","",0]
["REBECA15","","BRIGRE","01","",0]
["REBECA15","","CAMEL","01","",0]
["REBECA15","","DKHGRY","01","",0]
["SHELBY11","","BLACK","01","",0]
["SHELBY11","","HEGREY","01","",0]
["SHELBY11","","WARMWH","01","",0]
["ASHTON16","","BLACK","01","",0]
["ASHTON16","","DKHEGR","01","",0]
["ASHTON16","","MINK","01","",0]
["ACAPEL16","","CAMEL","01","",0]
["ACAPEL16","","HEBLK","01","",0]
["ACAPEL16","","HEGREY","01","",0]
["SWEEN16","","BLACK","01","",0]
["SWEEN16","","DKCLAY","01","",0]
["SWEEN16","","HEGREY","01","",0]
["SWEEN16","","MINYEL","01","",0]
["SWEEN18","","BLACK","01","",0]
["SWEEN18","","DKCLAY","01","",0]
["SWEEN18","","HEGREY","01","",0]
["SWEEN18","","MINYEL","01","",0]
["BETTO16","","BLACK","01","",0]
["BETTO16","","DEEPWA","01","",0]
["BETTO16","","DHALIA","01","",0]
["BETTO16","","HEGREY","01","",0]
["BETTO16","","SEPROS","01","",0]
["BETTO16","","WARMWH","01","",0]
["BETTO17","","BLACK","01","",0]
["BETTO17","","DEEPWA","01","",0]
["BETTO17","","DHALIA","01","",0]
["BETTO17","","HEGREY","01","",0]
["BETTO17","","SEPROS","01","",0]
["BETTO17","","WARMWH","01","",0]
["BETTO18","","BLACK","01","",0]
["BETTO18","","DEEPWA","01","",0]
["BETTO18","","DHALIA","01","",0]
["BETTO18","","HEGREY","01","",0]
["BETTO18","","SEPROS","01","",0]
["BETTO18","","WARMWH","01","",0]
["BETTO10","","BLACK","01","",0]
["BETTO10","","DEEPWA","01","",0]
["BETTO10","","DHALIA","01","",0]
["BETTO10","","HEGREY","01","",0]
["BETTO10","","SEPROS","01","",0]
["BETTO10","","WARMWH","01","",0]
["BETTO11","","BLACK","01","",0]
["BETTO11","","DEEPWA","01","",0]
["BETTO11","","DHALIA","01","",0]
["BETTO11","","HEGREY","01","",0]
["BETTO11","","SEPROS","01","",0]
["BETTO11","","WARMWH","01","",0]
["BETTO12","","BLACK","01","",0]
["BETTO12","","DEEPWA","01","",0]
["BETTO12","","DHALIA","01","",0]
["BETTO12","","HEGREY","01","",0]
["BETTO12","","SEPROS","01","",0]
["BETTO12","","WARMWH","01","",0]
["BETTO22","","BLACK","01","",0]
["BETTO22","","DEEPWA","01","",0]
["BETTO22","","DHALIA","01","",0]
["BETTO22","","HEGREY","01","",0]
["BETTO22","","SEPROS","01","",0]
["BETTO22","","WARMWH","01","",0]
["BETTO21","","BLACK","01","",0]
["BETTO21","","DEEPWA","01","",0]
["BETTO21","","DHALIA","01","",0]
["BETTO21","","HEGREY","01","",0]
["BETTO21","","SEPROS","01","",0]
["BETTO21","","WARMWH","01","",0]
["NOSTAL15","","BLACK","01","",0]
["NOSTAL15","","HEGREY","01","",0]
["NOSTAL15","","SEPROS","01","",0]
["NOSTAL15","","WARMWH","01","",0]
["NOSTAL16","","BLACK","01","",0]
["NOSTAL16","","HEGREY","01","",0]
["NOSTAL16","","SEPROS","01","",0]
["NOSTAL16","","WARMWH","01","",0]
["NOSTAL17","","BLACK","01","",0]
["NOSTAL17","","HEGREY","01","",0]
["NOSTAL17","","SEPROS","01","",0]
["NOSTAL17","","WARMWH","01","",0]
["NOSTAL22","","BLACK","01","",0]
["NOSTAL22","","HEGREY","01","",0]
["NOSTAL22","","SEPROS","01","",0]
["NOSTAL21","","BLACK","01","",0]
["NOSTAL21","","HEGREY","01","",0]
["NOSTAL21","","SEPROS","01","",0]
["NOSTAL21","","WARMWH","01","",0]
["NOSTAL23","","BLACK","01","",0]
["NOSTAL23","","HEGREY","01","",0]
["NOSTAL23","","SEPROS","01","",0]
["NOSTAL23","","WARMWH","01","",0]
["TRUFFL15","","BLACK","01","",0]
["TRUFFL15","","DEEPWA","01","",0]
["TRUFFL15","","HEGREY","01","",0]
["TRUFFL15","","WARMWH","01","",0]
["TRUFFL16","","BLACK","01","",0]
["TRUFFL16","","DEEPWA","01","",0]
["TRUFFL16","","HEGREY","01","",0]
["TRUFFL16","","WARMWH","01","",0]
["TRUFFL17","","BLACK","01","",0]
["TRUFFL17","","DEEPWA","01","",0]
["TRUFFL17","","HEGREY","01","",0]
["TRUFFL17","","WARMWH","01","",0]
["TRUFFL10","","BLACK","01","",0]
["TRUFFL10","","DEEPWA","01","",0]
["TRUFFL10","","HEGREY","01","",0]
["TRUFFL10","","SEPROS","01","",0]
["TRUFFL10","","WARMWH","01","",0]
["TRUFFL11","","BLACK","01","",0]
["TRUFFL11","","DEEPWA","01","",0]
["TRUFFL11","","HEGREY","01","",0]
["TRUFFL11","","WARMWH","01","",0]
["TRUFFL12","","BLACK","01","",0]
["TRUFFL12","","DEEPWA","01","",0]
["TRUFFL12","","HEGREY","01","",0]
["TRUFFL12","","WARMWH","01","",0]
["MISTY16","","SEPROS","01","",0]
["MISTY16","","WARMWH","01","",0]
["COLUMB16","","BLKMIX","01","",0]
["COLUMB16","","WARMWH","01","",0]
["COLUMB21","","BLKMIX","01","",0]
["COLUMB21","","WARMWH","01","",0]
["HUCKAB11","","BLKMIX","01","",0]
["HUCKAB11","","HEGREY","01","",0]
["LUMINA29","","BLACK","05","",null,0,null,0]
["LUMINA29","","BRIGRE","05","",null,0,null,0]
["LUCIA29","","BLACK","05","",null,0,null,0]
["LUCIA29","","HAZNUT","05","",null,0,null,0]